bitfinex/quotes_ETHUSD_20251217
["timestamp","ask_amount","ask_price","bid_price","bid_amount"]
[1765959561062,0.4803,2945.8,2945.4,7.7976492]
[1765959563340,0.6722,2945.9,2945.4,7.7976492]
[1765959563540,0.4803,2945.8,2945.4,7.7976492]
[1765959564279,0.3594,2945.5,2945.4,3.3961246]
[1765959564574,0.8385,2945.5,2945.4,3.9321246]
[1765959565074,0.8385,2945.5,2945.4,3.3961246]
[1765959565265,0.8385,2945.5,2945.4,3.9321246]
[1765959567776,0.1919,2945.9,2945.4,3.8504246]
[1765959567950,0.4803,2945.8,2945.4,3.3961246]
[1765959568154,0.4803,2945.8,2945.4,6.7912492]
[1765959568357,0.3594,2945.5,2945.4,3.3961246]
[1765959568944,0.8385,2945.5,2945.4,3.3961246]
[1765959570469,0.8385,2945.5,2945.4,0.001]
[1765959572979,1.26182791,2945.5,2945.4,0.001]
[1765959573186,0.8385,2945.5,2945.4,0.001]
[1765959577790,0.4941,2945.8,2945.4,0.4788]
[1765959577971,0.686,2945.9,2945.4,0.953]
[1765959578286,0.686,2945.9,2945.5,3.39500933]
[1765959578491,0.686,2945.9,2945.5,6.79001866]
[1765959578890,0.686,2945.9,2945.5,7.26421866]
[1765959579392,0.6758,2946.1,2945.6,0.536]
[1765959579695,1.10049682,2946.1,2945.6,1.0102]
[1765959579893,0.1817,2946.1,2945.6,1.0102]
[1765959580095,0.4941,2946.0,2945.6,0.536]
[1765959580461,0.4941,2946.0,2945.7,3.39477883]
[1765959580668,0.3558,2945.8,2945.7,3.39477883]
[1765959581402,0.4941,2946.0,2945.7,7.26735766]
[1765959581566,0.4941,2946.0,2945.7,3.39477883]
[1765959581567,0.3558,2945.8,2945.7,3.39477883]
[1765959582966,0.4941,2946.3,2945.7,7.26375766]
[1765959583996,0.1817,2946.4,2945.9,7.2632967]
[1765959584185,0.17920875,2946.5,2946.0,1.0102]
[1765959584186,0.4961,2946.5,2946.0,1.0102]
[1765959584590,0.002,2946.5,2946.1,0.4742]
[1765959584985,0.4961,2946.5,2946.1,0.4742]
[1765959585766,0.4961,2946.5,2946.0,1.0102]
[1765959585969,0.4961,2946.5,2946.1,6.78863582]
[1765959587199,0.4961,2946.5,2946.1,7.26283582]
[1765959589410,0.4961,2946.5,2946.1,6.78863582]
[1765959589615,0.3558,2946.2,2946.1,3.39431791]
[1765959590113,0.3558,2946.2,2946.1,3.87211791]
[1765959590305,0.002,2946.5,2946.3,0.4778]
[1765959590706,0.3558,2946.4,2946.1,6.78863582]
[1765959590880,0.8486,2946.4,2946.1,6.78863582]
[1765959591086,0.3558,2946.4,2946.1,6.78863582]
[1765959591378,0.8486,2946.4,2946.1,6.78863582]
[1765959595221,0.002,2946.5,2946.4,0.4778]
[1765959597404,0.002,2946.5,2946.4,3.8717723]
[1765959599114,0.3578,2946.5,2946.4,3.3939723]
[1765959599315,0.3558,2946.3,2945.9,6.7890967]
[1765959599514,0.002,2946.5,2946.0,0.536]
[1765959599515,0.3571,2946.1,2946.0,0.536]
[1765959601051,0.8485,2946.1,2945.8,7.25370739]
[1765959601252,0.499,2945.9,2945.8,3.39466358]
[1765959601700,0.002,2946.5,2945.6,3.39488695]
[1765959601701,0.845,2945.7,2945.6,3.39489407]
[1765959605859,0.0084,2945.6,2945.5,3.39592748]
[1765959610840,0.4593,2945.6,2945.5,3.39592748]
[1765959611354,5.07349227,2945.6,2945.5,0.001]
[1765959611751,0.92052657,2945.6,2945.5,0.001]
[1765959612338,0.4593,2945.6,2945.5,0.001]
[1765959613238,0.0084,2945.6,2945.5,0.001]
[1765959613445,0.4593,2945.6,2945.5,0.001]
[1765959617025,4.6122657,2945.6,2945.5,0.001]
[1765959618170,0.4593,2945.6,2945.5,0.001]
[1765959619270,0.92052657,2945.6,2945.5,0.001]
[1765959619643,0.4631,2945.4,2945.3,0.001]
[1765959619846,0.4631,2945.4,2945.1,0.001]
[1765959619847,0.8374,2945.2,2945.1,0.001]
[1765959620459,4.9903657,2945.2,2945.1,0.001]
[1765959621149,0.3865,2945.2,2945.1,0.001]
[1765959621360,0.8374,2945.2,2945.1,0.001]
[1765959621754,4.9903657,2945.2,2945.1,0.001]
[1765959622061,5.48940227,2945.2,2945.1,0.001]
[1765959627075,1.33643657,2945.2,2945.1,0.001]
[1765959631683,0.8374,2945.2,2945.1,0.001]
[1765959639283,4.23275515,2945.2,2945.1,0.001]
[1765959640888,4.23275515,2945.2,2945.0,0.002]
[1765959640889,5.10263938,2945.2,2945.0,0.002]
[1765959641068,5.09321104,2944.5,2944.4,0.001]
[1765959641255,0.4571,2944.2,2943.1,0.4882]
[1765959641458,0.4571,2944.2,2943.2,3.3976624]
[1765959641459,0.9153,2943.3,2943.2,3.3976624]
[1765959641696,0.4588,2943.3,2943.1,3.39773521]
[1765959641994,0.4565,2943.2,2943.1,3.39773521]
[1765959642291,0.9153,2943.2,2943.1,3.39773521]
[1765959643284,4.15781104,2943.6,2942.9,0.6]
[1765959643285,0.0046,2943.0,2942.9,3.9980011]
[1765959643460,0.4634,2943.0,2942.9,3.9980011]
[1765959644359,0.4634,2943.0,2942.9,0.6]
[1765959644575,0.9255211,2943.0,2942.9,0.6]
[1765959644894,9.24114318,2943.0,2942.9,0.6]
[1765959645059,12.58241938,2943.0,2942.9,0.6]
[1765959645261,0.4588,2942.6,2941.5,6.79925208]
[1765959645600,0.4204,2941.8,2941.7,0.537]
[1765959647272,0.4204,2941.8,2941.7,3.9363949]
[1765959647273,0.8761,2941.8,2941.7,3.9363949]
[1765959648204,0.8761,2941.4,2941.3,0.6]
[1765959648366,5.43941504,2941.4,2941.3,0.6]
[1765959648566,1.4200415,2941.4,2941.3,0.6]
[1765959648981,0.8761,2941.4,2941.3,0.6]
[1765959649768,0.8761,2941.4,2941.3,3.9998572]
[1765959650488,0.4584,2941.7,2941.3,3.9998572]
[1765959650688,0.1999,2942.1,2941.4,0.4882]
[1765959650874,0.6587,2942.1,2941.4,0.4882]
[1765959651267,1.24048913,2942.1,2941.5,6.79925208]
[1765959651492,0.58178913,2942.1,2941.6,0.4882]
[1765959651693,0.46438023,2942.3,2941.6,0.4892]
[1765959651896,4.61661104,2942.2,2941.6,0.4892]
[1765959652201,4.61661104,2942.2,2941.6,0.001]
[1765959652671,0.8645,2941.7,2941.6,0.001]
[1765959652869,5.02231104,2941.7,2941.6,0.001]
[1765959653068,5.54453214,2941.7,2941.6,0.001]
[1765959653479,5.65600023,2941.7,2941.6,0.001]
[1765959654800,2.25660533,2941.7,2941.6,0.001]
[1765959655274,5.65600023,2941.7,2941.6,0.001]
[1765959655467,2.25660533,2941.7,2941.6,0.001]
[1765959656683,5.65600023,2941.7,2941.6,0.001]
[1765959657004,2.25660533,2941.7,2941.6,0.001]
[1765959657803,1.85110133,2941.7,2941.6,0.001]
[1765959657971,0.4766,2941.7,2941.6,0.001]
[1765959658174,0.17773682,2941.8,2941.7,0.4764]
[1765959658396,1.02189408,2942.0,2941.7,0.4764]
[1765959658632,0.1999,2942.2,2941.7,0.9646]
[1765959659303,0.1999,2942.2,2941.8,6.7985587]
[1765959659509,0.17769628,2942.6,2942.2,0.4764]
[1765959659670,0.4588,2942.5,2941.9,0.538]
[1765959659876,0.4588,2942.4,2941.8,3.39927935]
[1765959660102,0.3907,2941.9,2941.8,3.39927935]
[1765959660293,0.63649628,2942.6,2941.8,7.2749587]
[1765959660606,0.17769628,2942.6,2941.9,0.4882]
[1765959661303,0.17769628,2942.6,2941.8,10.97923392]
[1765959661304,0.4588,2942.5,2941.8,6.7985587]
[1765959661505,0.4588,2942.5,2941.8,7.3365587]
[1765959661705,0.3907,2941.8,2941.7,3.39935004]
[1765959661909,0.658,2942.1,2941.7,3.39935004]
[1765959662202,0.3907,2941.8,2941.7,3.39935004]
[1765959662409,0.4588,2942.0,2941.7,6.79874494]
[1765959662614,0.4588,2942.0,2941.7,3.39935004]
[1765959662985,0.3907,2941.8,2941.7,3.39935004]
[1765959663183,0.0039,2941.7,2941.6,0.001]
[1765959663383,0.4627,2941.7,2941.6,0.001]
[1765959664506,0.868204,2941.7,2941.6,0.001]
[1765959665395,5.43220348,2941.7,2941.6,0.001]
[1765959667237,2.57080858,2941.7,2941.6,0.001]
[1765959667391,5.97020348,2941.7,2941.6,0.001]
[1765959667591,2.57080858,2941.7,2941.6,0.001]
[1765959668720,6.35600348,2941.7,2941.6,0.001]
[1765959668888,1.36968423,2941.6,2941.5,0.002]
[1765959669512,4.7691947,2941.6,2941.5,0.002]
[1765959669712,5.79129767,2941.6,2941.5,0.002]
[1765959670021,5.3071947,2941.6,2941.5,0.002]
[1765959670207,6.74481959,2941.6,2941.5,0.002]
[1765959671619,1.250604,2941.4,2941.3,0.6]
[1765959672697,7.38464351,2941.4,2941.3,0.6]
[1765959673027,0.5033,2940.6,2940.5,0.001]
[1765959673693,4.30947053,2940.6,2940.5,0.001]
[1765959673914,1.69885613,2940.6,2940.5,0.001]
[1765959674427,1.3394,2940.6,2940.5,0.001]
[1765959674639,1.744904,2940.6,2940.5,0.001]
[1765959675025,0.538,2940.6,2940.5,0.001]
[1765959675334,0.3066,2940.6,2940.5,0.001]
[1765959675499,1.14978023,2941.3,2940.5,0.001]
[1765959675701,0.4949,2941.1,2940.5,0.001]
[1765959675933,0.3066,2940.6,2940.5,0.001]
[1765959677396,0.405504,2941.1,2940.5,0.001]
[1765959678114,0.4949,2941.2,2940.5,0.001]
[1765959678418,0.7996,2940.6,2940.5,0.001]
[1765959678616,0.405504,2941.0,2940.5,0.001]
[1765959678930,0.4949,2940.9,2940.5,0.001]
[1765959681338,1.49728023,2941.2,2940.5,0.001]
[1765959681637,0.95928023,2941.1,2940.5,0.001]
[1765959681805,0.4949,2940.9,2940.5,0.001]
[1765959682917,0.46438023,2941.1,2940.5,0.001]
[1765959683127,1.44573901,2941.2,2940.5,0.4754]
[1765959683521,0.4949,2941.5,2940.5,0.4754]
[1765959683755,0.95928023,2941.5,2940.6,6.80133306]
[1765959683896,0.4949,2941.5,2940.7,0.4744]
[1765959684100,0.6948,2942.1,2940.9,0.4744]
[1765959684704,0.539,2942.2,2940.9,0.48467714]
[1765959684895,0.539,2942.2,2941.1,0.1855]
[1765959685101,3.39859719,2942.4,2941.2,0.4744]
[1765959685331,0.4949,2942.3,2941.4,0.4744]
[1765959685715,0.4949,2942.3,2941.5,6.79925208]
[1765959685949,0.4949,2942.3,2941.6,0.4744]
[1765959686307,0.4949,2942.3,2941.5,6.79925208]
[1765959686308,0.4959,2942.2,2941.5,6.79925208]
[1765959687217,0.4959,2942.2,2941.5,7.27365208]
[1765959687803,0.316,2941.6,2941.1,0.1855]
[1765959688001,0.1905,2941.8,2941.3,3.39981859]
[1765959688002,0.3111,2941.4,2941.3,3.39981859]
[1765959688207,0.001,2942.2,2941.4,0.4744]
[1765959688439,0.406504,2942.2,2941.4,0.4744]
[1765959688662,0.4949,2942.1,2941.3,6.79967579]
[1765959688842,0.6854,2941.9,2941.3,6.79967579]
[1765959689136,0.316,2941.4,2941.3,3.39981859]
[1765959689343,0.316,2941.4,2940.7,0.4744]
[1765959689512,0.8091,2941.4,2941.0,3.40014093]
[1765959689708,0.316,2941.4,2941.2,3.39996484]
[1765959690029,0.316,2941.4,2940.8,6.8008705]
[1765959690408,0.6854,2941.9,2940.9,0.4744]
[1765959690726,0.4949,2941.8,2940.9,0.4744]
[1765959690925,0.4949,2941.8,2940.8,3.93943525]
[1765959691126,0.4949,2941.8,2940.8,7.3398705]
[1765959691465,0.4949,2941.5,2940.7,3.40053065]
[1765959691607,1.0339,2941.5,2940.7,6.80108153]
[1765959691805,1.0339,2941.5,2940.6,0.4744]
[1765959692151,3.8051102,2941.6,2940.6,0.4744]
[1765959692320,0.001,2942.2,2941.7,0.4531]
[1765959692842,0.001,2942.2,2941.8,0.4744]
[1765959693010,0.001,2942.2,2941.5,1.1989]
[1765959693212,0.001,2942.2,2941.6,0.4744]
[1765959693923,0.001,2942.2,2941.8,0.4744]
[1765959695223,0.001,2942.2,2942.1,0.9512]
[1765959696023,0.001,2942.2,2942.1,4.35013273]
[1765959699846,0.001,2942.2,2942.1,4.88913273]
[1765959700050,0.001,2942.2,2942.1,3.85703273]
[1765959700946,0.001,2942.2,2942.1,4.31543273]
[1765959702557,0.001,2942.2,2942.0,3.39902844]
[1765959702849,0.0032,2942.0,2941.6,0.539]
[1765959703148,0.0032,2942.0,2941.9,3.3991638]
[1765959703349,0.0032,2942.0,2941.8,3.39924726]
[1765959704456,0.0032,2942.0,2941.6,6.79900878]
[1765959706126,0.0032,2942.0,2941.6,3.39949831]
[1765959707556,0.6806,2941.9,2941.6,3.39949831]
[1765959708127,0.4898,2942.2,2941.6,6.79900878]
[1765959708843,0.001,2942.2,2941.6,7.25740878]
[1765959709862,0.001,2942.2,2942.1,1.1217]
[1765959710255,0.352,2942.1,2942.0,0.539]
[1765959710861,0.001,2942.2,2941.6,11.77651613]
[1765959711184,0.4898,2942.2,2941.9,0.539]
[1765959711536,0.3207,2942.0,2941.9,0.539]
[1765959711734,0.3207,2942.0,2941.9,3.9381638]
[1765959711954,0.3207,2942.0,2941.9,3.3991638]
[1765959712254,0.8078,2942.0,2941.9,3.3991638]
[1765959712432,0.3223,2941.9,2941.8,3.39923505]
[1765959712845,0.324,2942.0,2941.9,3.39909168]
[1765959713937,0.324,2942.0,2941.7,6.7987898]
[1765959715661,0.001,2942.2,2941.9,0.4752]
[1765959715861,0.001,2942.2,2942.1,1.1217]
[1765959716038,0.001,2942.2,2942.1,4.52063273]
[1765959718562,0.001,2942.2,2942.1,3.87413273]
[1765959718750,0.3217,2942.2,2942.1,3.39893273]
[1765959718957,0.3217,2942.2,2942.1,3.93793273]
[1765959719153,0.4898,2942.2,2942.0,3.39899362]
[1765959719359,0.3207,2942.1,2942.0,3.39899362]
[1765959720438,0.9996,2941.9,2941.8,3.39925288]
[1765959720638,0.9996,2941.9,2941.5,0.539]
[1765959720639,0.4937,2941.8,2941.5,0.539]
[1765959720853,0.3158,2941.7,2941.6,3.39951047]
[1765959721267,0.008,2941.6,2941.4,3.39967943]
[1765959721465,0.4571,2941.4,2941.3,0.002]
[1765959721670,0.8091,2941.4,2941.3,0.002]
[1765959721858,1.214604,2941.4,2941.3,0.002]
[1765959722039,0.4571,2940.6,2940.5,3.40178217]
[1765959722448,0.405504,2941.3,2940.5,3.40178217]
[1765959722449,0.1918,2941.2,2940.5,0.4594]
[1765959722768,0.1918,2941.6,2940.8,0.4584]
[1765959723069,0.1918,2941.6,2940.9,0.9974]
[1765959724369,0.6581,2941.6,2941.0,6.80040802]
[1765959725662,0.539,2941.8,2941.1,0.1918]
[1765959725857,0.6581,2941.9,2941.1,0.6757]
[1765959726053,0.4663,2941.8,2941.0,6.80040802]
[1765959726970,0.1918,2941.9,2941.1,0.4839]
[1765959727169,0.6581,2941.9,2941.1,0.4839]
[1765959727375,0.4663,2941.8,2941.1,0.4839]
[1765959727774,0.4663,2941.8,2941.2,0.539]
[1765959727975,0.405504,2942.1,2941.2,0.539]
[1765959728275,0.4663,2942.1,2941.3,0.51789857]
[1765959728475,0.4663,2942.1,2941.3,0.4839]
[1765959728675,0.4663,2942.1,2941.4,6.79948322]
[1765959728878,0.44051263,2942.0,2941.4,6.79948322]
[1765959729173,0.1853,2941.9,2941.4,7.28338322]
[1765959729944,0.6516,2941.9,2941.4,7.28338322]
[1765959732276,0.6516,2941.9,2941.4,6.79948322]
[1765959732483,0.4663,2941.8,2941.4,3.39974161]
[1765959732883,0.8208,2941.4,2941.3,0.002]
[1765959733715,1.24283329,2941.4,2941.3,0.002]
[1765959734450,0.4652,2941.4,2941.3,0.002]
[1765959734649,0.8208,2941.4,2941.3,0.002]
[1765959740577,4.62604561,2941.4,2941.3,0.002]
[1765959740877,4.62604561,2941.4,2941.0,0.002]
[1765959740878,0.875404,2941.1,2941.0,0.002]
[1765959741271,0.8173,2940.6,2940.5,0.001]
[1765959742891,0.4663,2941.3,2940.5,0.001]
[1765959743192,0.4663,2941.3,2940.5,0.4849]
[1765959743394,0.4663,2941.1,2940.5,0.4849]
[1765959743783,0.4663,2941.1,2940.5,0.001]
[1765959744995,0.4663,2941.1,2940.5,0.4849]
[1765959746078,0.4663,2941.4,2940.5,0.4849]
[1765959746302,0.4663,2941.4,2940.7,0.4839]
[1765959746601,0.4663,2941.4,2940.8,0.4839]
[1765959746790,0.4663,2941.4,2940.9,3.40031963]
[1765959746991,0.3545,2941.0,2940.9,3.40031963]
[1765959747315,0.8197,2941.0,2940.9,3.40031963]
[1765959749109,0.4652,2940.9,2940.8,3.40043525]
[1765959749479,0.351,2940.8,2940.7,3.93950997]
[1765959749679,0.351,2940.8,2940.7,3.40050997]
[1765959749993,0.4663,2941.0,2940.7,3.40050997]
[1765959750307,0.4663,2941.6,2940.8,0.4839]
[1765959750473,0.4663,2941.6,2940.8,0.51790435]
[1765959750676,0.001,2941.8,2941.2,0.4839]
[1765959750880,0.4673,2941.8,2941.2,1.0229]
[1765959751195,0.4673,2941.8,2941.3,3.3998572]
[1765959751196,0.3545,2941.4,2941.3,3.3998572]
[1765959751589,0.4673,2941.8,2941.3,3.3998572]
[1765959751590,0.4652,2941.7,2941.3,3.3998572]
[1765959751981,0.4652,2941.7,2941.3,6.7997144]
[1765959752639,0.4652,2941.7,2941.3,3.3998572]
[1765959753308,0.001,2941.8,2941.4,0.4839]
[1765959753495,0.001,2941.8,2941.7,0.4739]
[1765959755407,0.001,2941.8,2941.7,3.8732949]
[1765959756110,0.001,2941.8,2941.7,4.3514949]
[1765959756285,0.001,2941.8,2941.7,3.8732949]
[1765959756486,0.3555,2941.8,2941.7,3.8732949]
[1765959757110,0.3555,2941.8,2941.7,3.3993949]
[1765959757412,0.4997,2941.7,2941.3,0.539]
[1765959757613,0.3135,2941.5,2941.4,3.39970686]
[1765959757910,0.495,2941.7,2941.4,3.39970686]
[1765959758079,0.4933,2941.3,2941.0,3.4000973]
[1765959758283,0.001,2941.8,2941.1,1.0281]
[1765959758691,0.4543,2941.1,2941.0,3.4000973]
[1765959758896,0.3585,2941.3,2941.0,3.9390973]
[1765959759113,3.40031084,2941.8,2941.0,7.33930131]
[1765959759277,0.495,2941.6,2941.0,7.33930131]
[1765959759483,0.35936108,2941.7,2941.0,7.79420131]
[1765959759681,0.495,2941.7,2941.0,7.79420131]
[1765959759918,0.495,2941.7,2941.0,7.33930131]
[1765959760118,3.3993949,2941.7,2941.0,3.9390973]
[1765959760304,0.4543,2941.1,2941.0,3.4000973]
[1765959760505,0.001,2941.8,2941.0,3.4000973]
[1765959760506,0.96038023,2941.8,2941.0,7.25520131]
[1765959760704,4.35967959,2941.8,2941.0,7.25520131]
[1765959760909,4.35967959,2941.8,2941.0,3.4000973]
[1765959760910,0.495,2941.7,2941.0,3.4000973]
[1765959761108,0.3181,2941.1,2941.0,3.4000973]
[1765959761497,0.001,2941.8,2941.0,6.80030131]
[1765959761688,0.495,2941.7,2941.0,3.4000973]
[1765959761883,0.495,2941.5,2941.0,3.4000973]
[1765959762099,0.495,2941.5,2941.0,6.80030131]
[1765959763184,0.495,2941.5,2941.0,3.4000973]
[1765959763387,0.495,2941.5,2941.0,6.80030131]
[1765959763740,0.3181,2941.1,2941.0,3.4000973]
[1765959763923,3.89454665,2941.6,2941.0,3.8891973]
[1765959764223,0.495,2941.4,2941.0,3.8891973]
[1765959764715,0.3181,2941.1,2941.0,3.4000973]
[1765959765120,0.38945467,2941.5,2940.9,3.40026605]
[1765959765121,0.4999,2941.0,2940.9,3.40026605]
[1765959766293,0.0049,2941.0,2940.9,3.40026605]
[1765959768230,0.495,2941.3,2940.9,3.88936605]
[1765959769101,0.495,2941.3,2940.9,3.40026605]
[1765959769303,0.3181,2941.0,2940.9,3.40026605]
[1765959772538,0.3181,2941.0,2940.9,3.40226605]
[1765959772712,0.495,2941.3,2940.9,3.40226605]
[1765959773032,0.495,2941.3,2940.9,6.80258568]
[1765959773228,0.495,2941.3,2940.9,3.40226605]
[1765959773431,0.3181,2941.0,2940.9,3.40226605]
[1765959776342,0.8114,2941.0,2940.9,3.40226605]
[1765959776737,0.3181,2941.0,2940.9,0.002]
[1765959777454,0.8114,2941.0,2940.9,0.002]
[1765959778810,0.3181,2941.0,2940.9,0.002]
[1765959779247,0.8114,2941.0,2940.9,0.002]
[1765959780745,0.73924312,2941.0,2940.9,0.002]
[1765959781048,0.8114,2941.0,2940.9,0.002]
[1765959781273,0.8124,2941.0,2940.9,0.002]
[1765959784160,0.001,2941.0,2940.9,0.4826]
[1765959784358,0.001,2941.0,2940.9,0.002]
[1765959784359,0.8128,2941.0,2940.9,0.002]
[1765959784937,4.63428855,2941.0,2940.9,0.002]
[1765959785462,1.23408454,2941.0,2940.9,0.002]
[1765959786357,4.63428855,2941.0,2940.9,0.002]
[1765959787659,1.23408454,2941.0,2940.9,0.002]
[1765959787851,0.8128,2941.0,2940.9,0.002]
[1765959791562,0.3578,2941.0,2940.9,0.002]
[1765959791763,0.001,2941.0,2940.9,0.4826]
[1765959792365,0.3578,2941.0,2940.9,0.002]
[1765959792538,0.8128,2941.0,2940.9,0.002]
[1765959798969,1.23408059,2941.0,2940.9,0.002]
[1765959799196,4.6342846,2941.0,2940.9,0.002]
[1765959799885,1.23408059,2941.0,2940.9,0.002]
[1765959800561,4.6342846,2941.0,2940.9,0.002]
[1765959801184,1.23408059,2941.0,2940.9,0.002]
[1765959801382,0.8128,2941.0,2940.9,0.002]
[1765959802596,0.3578,2941.0,2940.9,0.002]
[1765959804456,0.001,2941.0,2940.9,0.4826]
[1765959804894,0.001,2941.0,2940.9,3.88291963]
[1765959805191,0.3578,2941.0,2940.9,3.88291963]
[1765959807297,0.3578,2941.0,2940.9,3.40231963]
[1765959808785,0.001,2941.0,2940.9,3.88291963]
[1765959809179,0.4782,2941.0,2940.9,3.40231963]
[1765959809817,0.001,2941.0,2940.9,3.88291963]
[1765959810104,0.001,2941.0,2940.9,5.4508553]
[1765959810471,0.001,2941.0,2940.9,5.46113244]
[1765959810710,0.001,2941.0,2940.9,6.03313563]
[1765959810868,0.001,2941.0,2940.9,6.46351267]
[1765959811270,0.001,2941.0,2940.9,10.63311756]
[1765959811498,0.001,2941.7,2941.6,0.9513]
[1765959811707,0.001,2941.7,2941.6,5.65890489]
[1765959811905,0.001,2941.7,2941.6,6.22479538]
[1765959812914,0.001,2941.7,2941.6,1.58549049]
[1765959813114,0.001,2941.7,2941.2,0.4707]
[1765959813298,0.001,2941.7,2941.3,7.80309463]
[1765959813492,0.001,2941.7,2941.3,6.7997144]
[1765959813695,0.001,2941.7,2941.4,0.539]
[1765959814596,0.001,2941.7,2941.4,1.014]
[1765959814914,0.001,2941.7,2941.5,0.78137144]
[1765959815493,0.001,2941.7,2941.6,3.39951047]
[1765959815699,0.3558,2941.7,2941.6,3.39951047]
[1765959817017,0.001,2941.7,2941.6,3.88171047]
[1765959817194,0.001,2941.7,2941.6,4.74188429]
[1765959817720,0.001,2941.7,2941.6,5.21158429]
[1765959819526,0.001,2941.7,2941.6,4.74188429]
[1765959820936,0.001,2941.7,2941.6,5.21158429]
[1765959826031,0.0036,2941.1,2940.9,0.46638023]
[1765959826233,0.4579,2941.1,2940.9,3.40230838]
[1765959826526,0.4579,2941.1,2940.9,0.002]
[1765959827488,0.4579,2941.1,2940.9,3.40227733]
[1765959828301,0.4579,2941.1,2940.9,0.002]
[1765959831808,3.8579884,2941.1,2940.9,0.002]
[1765959832610,0.4579,2941.1,2940.9,0.002]
[1765959833015,0.8436767,2941.1,2940.9,0.002]
[1765959833332,4.2437651,2941.1,2940.9,0.002]
[1765959833539,0.8436767,2941.1,2940.9,0.002]
[1765959834615,0.4579,2941.1,2940.9,0.002]
[1765959838013,0.4589,2941.1,2940.9,0.002]
[1765959839438,0.001,2941.1,2940.9,0.002]
[1765959839641,0.815,2941.1,2940.9,0.002]
[1765959840311,4.2150884,2941.1,2940.9,0.002]
[1765959840539,5.39349164,2941.1,2940.9,0.002]
[1765959841037,4.2150884,2941.1,2940.9,0.002]
[1765959841630,0.001,2941.1,2940.9,0.002]
[1765959841834,0.3616,2941.1,2940.9,0.002]
[1765959842454,0.815,2941.1,2940.9,0.002]
[1765959842611,0.001,2941.1,2941.0,0.4605]
[1765959842947,0.3625,2941.1,2941.0,0.002]
[1765959843254,0.815,2941.1,2941.0,0.002]
[1765959843425,0.3625,2941.1,2941.0,0.002]
[1765959843625,0.001,2941.1,2941.0,0.002]
[1765959844034,0.3634,2941.1,2941.0,0.002]
[1765959845716,0.001,2941.1,2941.0,0.002]
[1765959845911,0.001,2941.1,2941.0,0.4702]
[1765959846213,0.001,2941.1,2941.0,0.9264]
[1765959846419,0.001,2941.1,2941.0,1.43716462]
[1765959846742,0.001,2941.1,2941.0,1.44744176]
[1765959846944,0.001,2941.1,2941.0,1.43716462]
[1765959847142,0.001,2941.1,2941.0,1.97516462]
[1765959847640,0.001,2941.1,2941.0,5.37536863]
[1765959847850,0.001,2941.1,2941.0,5.38564577]
[1765959848815,0.001,2941.1,2941.0,4.45096863]
[1765959849062,0.001,2941.1,2941.0,8.49557311]
[1765959849742,0.001,2941.1,2941.0,8.49407322]
[1765959855655,0.001,2941.1,2941.0,9.03207322]
[1765959869470,0.001,2941.1,2941.0,4.40840401]
[1765959870038,0.001,2941.1,2941.0,4.86460401]
[1765959870239,0.001,2941.1,2941.0,5.23182217]
[1765959870635,0.001,2941.1,2941.0,4.78589931]
[1765959870836,0.001,2941.1,2941.0,9.44357056]
[1765959871171,0.001,2941.1,2941.0,5.24209931]
[1765959873973,0.001,2941.1,2941.0,4.70409931]
[1765959874271,0.001,2941.1,2941.0,5.24209931]
[1765959875474,0.801,2941.1,2941.0,0.002]
[1765959875972,0.3412,2941.1,2941.0,0.002]
[1765959876292,0.3412,2941.1,2941.0,3.40220401]
[1765959876587,0.001,2941.1,2941.0,8.47727322]
[1765959876754,0.001,2941.1,2941.0,10.05906573]
[1765959877137,0.001,2941.1,2941.0,5.43759652]
[1765959877366,0.001,2941.1,2941.0,3.85580401]
[1765959879885,0.001,2941.1,2941.0,3.40220401]
[1765959879886,0.8072,2941.1,2941.0,3.40220401]
[1765959880049,0.8072,2941.1,2941.0,0.002]
[1765959882583,0.3231,2941.1,2941.0,0.002]
[1765959883381,0.001,2941.1,2941.0,0.002]
[1765959883678,0.3247,2941.1,2941.0,0.002]
[1765959884684,0.001,2941.1,2941.0,0.002]
[1765959884882,0.3247,2941.1,2941.0,0.002]
[1765959885080,0.001,2941.1,2941.0,0.4698]
[1765959885580,0.3231,2941.1,2941.0,3.40220401]
[1765959887694,0.001,2941.1,2941.0,0.4698]
[1765959888756,0.001,2941.1,2941.0,5.12996921]
[1765959889000,0.001,2941.1,2941.0,0.4698]
[1765959889561,0.3231,2941.1,2941.0,0.002]
[1765959890764,0.001,2941.1,2941.0,5.12996921]
[1765959891070,0.001,2941.1,2941.0,6.37805777]
[1765959891585,0.001,2941.1,2941.0,6.38833491]
[1765959892590,0.001,2941.1,2941.0,9.78853892]
[1765959892762,0.001,2941.1,2941.0,5.62106971]
[1765959892963,0.001,2941.1,2941.0,9.78853892]
[1765959893885,0.001,2941.1,2941.0,5.61079257]
[1765959894083,0.001,2941.1,2941.0,4.90070401]
[1765959894587,0.001,2941.1,2941.0,4.91098115]
[1765959896614,0.5009,2941.1,2941.0,3.87000401]
[1765959896810,0.001,2941.1,2941.0,9.06817322]
[1765959897101,0.001,2941.1,2941.0,10.3152225]
[1765959897310,0.001,2941.1,2941.0,10.32549964]
[1765959900406,0.3231,2941.1,2941.0,5.18725329]
[1765959900578,0.001,2941.1,2941.0,4.40800401]
[1765959900784,0.001,2941.1,2941.0,9.07845036]
[1765959901375,0.001,2941.1,2941.0,9.07804924]
[1765959901801,0.001,2941.1,2941.0,3.40220401]
[1765959901802,0.5009,2941.1,2941.0,3.40220401]